[Event "TUR-chT Superleague 2018"]
[Site "Ankara"]
[Date "2018.07.29"]
[Round "5"]
[White "Onur, Cigdem"]
[Black "Sade, Defne"]
[Result "1-0"]
[ECO "D00"]
[WhiteElo "1750"]
[BlackElo "1954"]
[Annotator "NA"]
[PlyCount "113"]
[EventDate "2018.07.25"]
[EventType "team-tourn"]
[EventCountry "TUR"]
[SourceTitle "playchess.com"]
[Source "ChessBase"]
[SourceQuality "1"]
[TimeControl "40/5400+30:1800+30"]

1. d4 {[%emt 0:00:30]} d5 {[%emt 0:01:00]} 2. Bf4 {[%emt 0:00:30]} c5 {[%emt 0:00:30]} 3. e3 {[%emt 0:00:30]} Nc6 {[%emt 0:00:00]} 4. c3 {[%emt 0:03:30]} Nf6 {[%emt 0:00:00]} 5. Nd2 {[%emt 0:00:30]} Bf5 {[%emt 0:00:30]} 6. Qb3 {[%emt 0:02:30]} Qd7 {[%emt 0:00:30]} 7. Ngf3 {[%emt 0:09:30]} c4 {[%emt 0:00:30]} 8. Qd1 {[%emt 0:03:30]} e6 {[%emt 0:00:30]} 9. Nh4 $11 {[%emt 0:19:30] LiveBook: 13 Games} Bg6 {[%emt 0:05:30]} 10. Nxg6 {[%emt 0:01:30]} hxg6 {[%emt 0:00:30]} 11. e4 {[%emt 0:07:30]} Be7 {[%emt 0:01:30]} 12. e5 {[%emt 0:02:30]} Ng8 {[%emt 0:12:30]} 13. Be2 {[%emt 0:13:30]} Nh6 {[%emt 0:03:30]} 14. h3 {[%emt 0:02:30]} Nf5 {[%emt 0:01:30]} 15. O-O {[%emt 0:03:30]} b5 {[%emt 0:03:30]} 16. b4 {[%emt 0:05:30]} O-O {[%emt 0:04:30]} 17. a4 {[%emt 0:04:47]} a6 {[%emt 0:01:30]} 18. g4 {[%emt 0:04:26]} Nh4 {[%emt 0:01:30]} 19. Bg3 {[%emt 0:01:12]} g5 {[%emt 0:14:30]} 20. f4 {[%emt 0:03:40]} gxf4 {[%emt 0:04:30]} 21. Bxf4 {[%emt 0:02:40]} Rfb8 {[%emt 0:01:30]} 22. a5 {[%emt 0:01:37]} Qd8 {[%emt 0:00:30]} 23. Nf3 {[%emt 0:00:58]} Nxf3+ {[%emt 0:10:30]} 24. Rxf3 {[%emt 0:00:09]} Bh4 {[%emt 0:00:30]} 25. Qd2 {[%emt 0:01:18]} Ne7 {[%emt 0:09:30]} 26. Raf1 {[%emt 0:00:57]} Ng6 {[%emt 0:01:30]} 27. Be3 {[%emt 0:00:25]} Rb7 {[%emt 0:06:13]} 28. Bd1 {[%emt 0:00:14]} Nf8 {[%emt 0:00:37]} 29. Bc2 {[%emt 0:01:36]} g6 {[%emt 0:03:34]} 30. g5 {[%emt 0:03:20]} Nh7 {[%emt 0:00:38]} 31. Rf6 {[%emt 0:00:14]} Nxf6 {[%emt 0:02:42]} 32. gxf6 {[%emt 0:00:12]} Kf8 {[%emt 0:02:56]} 33. Qg2 {[%emt 0:00:26]} Ke8 {[%emt 0:03:16]} 34. Bxg6 {[%emt 0:00:05]} fxg6 {[%emt 0:01:12]} 35. Qxg6+ {[%emt 0:00:50]} Kd7 {[%emt 0:00:05]} 36. Qf7+ {[%emt 0:01:14]} Kc8 {[%emt 0:00:45]} 37. Qxe6+ {[%emt 0:00:08]} Rd7 {[%emt 0:02:37]} 38. Qg4 {[%emt 0:00:47]} Bxf6 {[%emt 0:00:51]} 39. Rxf6 {[%emt 0:00:18]} Raa7 {[%emt 0:00:25]} 40. h4 {[%emt 0:00:00]} Kb8 {[%emt 0:01:09]} 41. Bg5 {[%emt 0:11:57]} Qh8 {[%emt 0:03:30]} 42. e6 {[%emt 0:06:01]} Rd8 {[%emt 0:03:30]} 43. Qf4+ {[%emt 0:03:48]} Ka8 {[%emt 0:00:30]} 44. Rf7 {[%emt 0:05:57]} Rxf7 {[%emt 0:05:30]} 45. Qxf7 {[%emt 0:02:05]} Qg8 {[%emt 0:01:22]} 46. Qc7 {[%emt 0:03:14]} Re8 {[%emt 0:04:37]} 47. Qc6+ {[%emt 0:00:43]} Kb8 {[%emt 0:00:19]} 48. Qb6+ {[%emt 0:00:11]} Kc8 {[%emt 0:00:30]} 49. Qxa6+ {[%emt 0:00:00]} Kc7 {[%emt 0:00:00]} 50. Qb6+ {[%emt 0:00:17]} Kc8 {[%emt 0:00:19]} 51. Qc6+ {[%emt 0:00:30]} Kb8 {[%emt 0:00:30]} 52. Qxb5+ {[%emt 0:00:18]} Kc7 {[%emt 0:00:00]} 53. Qb6+ {[%emt 0:01:00]} Kc8 {[%emt 0:00:00]} 54. Qc6+ {[%emt 0:00:24]} Kb8 {[%emt 0:00:00]} 55. Qb5+ {[%emt 0:01:56]} Kc8 {[%emt 0:00:10]} 56. Qd7+ {[%emt 0:00:20]} Kb8 {[%emt 0:00:11]} 57. a6 {[%emt 0:00:39]} 1-0

[Event "TUR-chT Superleague 2018"]
[Site "Ankara"]
[Date "2018.07.29"]
[Round "5"]
[White "Yorgun, Yaren Naz"]
[Black "Celik, Eda"]
[Result "0-1"]
[ECO "D02"]
[WhiteElo "1737"]
[BlackElo "1864"]
[Annotator "NA"]
[PlyCount "96"]
[EventDate "2018.07.25"]
[EventType "team-tourn"]
[EventCountry "TUR"]
[SourceTitle "playchess.com"]
[Source "ChessBase"]
[SourceQuality "1"]
[TimeControl "40/5400+30:1800+30"]

1. d4 {[%emt 0:00:30]} Nf6 {[%emt 0:01:00]} 2. Bf4 {[%emt 0:00:00]} d5 {[%emt 0:00:30]} 3. Nf3 {[%emt 0:00:00]} c5 {[%emt 0:00:30]} 4. e3 {[%emt 0:00:30]} Nc6 {[%emt 0:00:30]} 5. c3 {[%emt 0:00:30]} Qb6 {[%emt 0:00:30]} 6. Qb3 {[%emt 0:00:30]} c4 {[%emt 0:00:30]} 7. Qc2 {[%emt 0:00:00]} Bf5 {[%emt 0:00:30]} 8. Qc1 {[%emt 0:00:00]} e6 {[%emt 0:01:30]} 9. Be2 {[%emt 0:01:30]} Be7 {[%emt 0:00:30]} 10. Nbd2 {[%emt 0:00:30]} h6 {[%emt 0:03:30]} 11. h3 {[%emt 0:02:30]} O-O {[%emt 0:00:30]} 12. O-O {[%emt 0:01:30]} Rfc8 {[%emt 0:00:30]} 13. Ne5 {[%emt 0:01:30]} Nxe5 {[%emt 0:19:30]} 14. Bxe5 {[%emt 0:01:30]} Qd8 {[%emt 0:02:30]} 15. Bf3 {[%emt 0:05:30]} Bd3 {[%emt 0:10:30]} 16. Re1 {[%emt 0:05:30]} b5 {[%emt 0:01:30]} 17. e4 {[%emt 0:01:30]} b4 {[%emt 0:08:30]} 18. g4 {[%emt 0:26:30]} Qa5 {[%emt 0:11:30]} 19. a3 {[%emt 0:06:30]} bxc3 {[%emt 0:07:30]} 20. bxc3 {[%emt 0:11:30]} Rc6 {[%emt 0:03:30]} 21. a4 {[%emt 0:00:30]} Rac8 {[%emt 0:01:30]} 22. Bg2 {[%emt 0:02:30]} Rb6 {[%emt 0:03:30]} 23. f3 {[%emt 0:04:30]} Nd7 {[%emt 0:09:23]} 24. f4 {[%emt 0:21:40]} Nxe5 {[%emt 0:00:33]} 25. fxe5 {[%emt 0:00:13]} Bh4 {[%emt 0:00:55]} 26. Re3 {[%emt 0:01:09]} Bg5 {[%emt 0:00:42]} 27. Re1 {[%emt 0:01:26]} Rcb8 {[%emt 0:02:21]} 28. Ra2 {[%emt 0:02:10]} Rb1 {[%emt 0:03:24]} 29. Qxb1 {[%emt 0:00:46]} Bxb1 {[%emt 0:00:30]} 30. Nxb1 {[%emt 0:00:00]} Rb3 {[%emt 0:02:32]} 31. exd5 {[%emt 0:01:06]} exd5 {[%emt 0:00:06]} 32. Rae2 {[%emt 0:01:15]} Qb6 {[%emt 0:03:10]} 33. Nd2 {[%emt 0:00:28]} Bxd2 {[%emt 0:02:17]} 34. Rxd2 {[%emt 0:00:02]} Qa5 {[%emt 0:00:30]} 35. e6 {[%emt 0:01:33]} fxe6 {[%emt 0:00:04]} 36. Rde2 {[%emt 0:00:26]} Qxc3 {[%emt 0:00:25]} 37. Rxe6 {[%emt 0:00:00]} Qxd4+ {[%emt 0:00:30]} 38. Kh1 {[%emt 0:00:00]} Rb2 {[%emt 0:00:37]} 39. R6e5 {[%emt 0:00:09]} Kh7 {[%emt 0:00:53]} 40. Bxd5 {[%emt 0:00:00]} Qf2 {[%emt 0:01:08]} 41. Be4+ {[%emt 0:01:37]} g6 {[%emt 0:05:30]} 42. Re7+ {[%emt 0:06:30]} Kh8 {[%emt 0:00:30]} 43. Bc2 {[%emt 0:00:30]} Rxc2 {[%emt 0:05:30]} 44. Re8+ {[%emt 0:00:30]} Kg7 {[%emt 0:00:00]} 45. R1e7+ {[%emt 0:04:30]} Kf6 {[%emt 0:00:00]} 46. g5+ {[%emt 0:00:00]} Kxg5 {[%emt 0:03:21]} 47. Re5+ {[%emt 0:00:00]} Kf4 {[%emt 0:00:55]} 48. Re4+ {[%emt 0:01:30]} Kf3 {[%emt 0:00:17]} 0-1

[Event "TUR-chT Superleague 2018"]
[Site "Ankara"]
[Date "2018.07.29"]
[Round "5"]
[White "Keskin, Elif"]
[Black "Erece, Ece Alkim"]
[Result "1-0"]
[ECO "D00"]
[WhiteElo "1719"]
[BlackElo "1788"]
[Annotator "NA"]
[PlyCount "65"]
[EventDate "2018.07.25"]
[EventType "team-tourn"]
[EventCountry "TUR"]
[SourceTitle "playchess.com"]
[Source "ChessBase"]
[SourceQuality "1"]
[TimeControl "40/5400+30:1800+30"]

1. d4 {[%emt 0:00:30]} Nf6 {[%emt 0:01:00]} 2. Bg5 {[%emt 0:00:00]} d5 {[%emt 0:03:30]} 3. Bxf6 {[%emt 0:00:00]} gxf6 {[%emt 0:01:30]} 4. e3 {[%emt 0:00:30]} Nc6 {[%emt 0:00:30]} 5. c4 {[%emt 0:05:30]} e5 {[%emt 0:10:30]} 6. dxe5 {[%emt 0:11:30]} fxe5 {[%emt 0:00:30]} 7. cxd5 {[%emt 0:06:30]} Nb4 {[%emt 0:01:30]} 8. Nc3 {[%emt 0:01:30]} Rg8 {[%emt 0:05:30]} 9. a3 {[%emt 0:03:30]} Na6 {[%emt 0:00:30]} 10. Qh5 {[%emt 0:03:30]} Rg5 {[%emt 0:08:30]} 11. Qxh7 {[%emt 0:06:30]} Bf5 {[%emt 0:03:30]} 12. Qh4 {[%emt 0:00:30]} Nc5 {[%emt 0:00:30]} 13. Nf3 {[%emt 0:03:30]} Rg8 {[%emt 0:02:30]} 14. Qxd8+ {[%emt 0:02:30]} Rxd8 {[%emt 0:00:00]} 15. Bb5+ {[%emt 0:11:30]} Ke7 {[%emt 0:02:00]} 16. Bc4 {[%emt 0:10:30]} Rxg2 {[%emt 0:03:30]} 17. Nxe5 {[%emt 0:05:30]} Bg7 {[%emt 0:01:30]} 18. Nf3 {[%emt 0:05:30]} Bd3 {[%emt 0:01:30]} 19. Ba2 {[%emt 0:04:09]} Ba6 {[%emt 0:04:30]} 20. Bb1 {[%emt 0:05:48]} Nb3 {[%emt 0:23:30]} 21. Ra2 {[%emt 0:00:37]} Bc4 {[%emt 0:01:30]} 22. h4 {[%emt 0:04:09]} Bxc3+ {[%emt 0:03:30]} 23. bxc3 {[%emt 0:00:17]} Bxd5 {[%emt 0:04:46]} 24. e4 {[%emt 0:01:20]} Bc4 {[%emt 0:03:05]} 25. h5 {[%emt 0:00:38]} Kf8 {[%emt 0:02:35]} 26. h6 {[%emt 0:01:30]} Kg8 {[%emt 0:00:16]} 27. Ne5 {[%emt 0:01:52]} Be6 {[%emt 0:00:51]} 28. h7+ {[%emt 0:01:09]} Kh8 {[%emt 0:00:18]} 29. f4 {[%emt 0:00:44]} Rg7 {[%emt 0:02:43]} 30. f5 {[%emt 0:01:04]} Bd7 {[%emt 0:00:59]} 31. f6 {[%emt 0:00:27]} Rxh7 {[%emt 0:01:22]} 32. Nxf7+ {[%emt 0:00:07]} Kg8 {[%emt 0:00:32]} 33. Rxh7 {[%emt 0:00:10]} 1-0

[Event "TUR-chT Superleague 2018"]
[Site "Ankara"]
[Date "2018.07.29"]
[Round "5"]
[White "Sel, Sedat"]
[Black "Korkmaz, Necmettin"]
[Result "0-1"]
[ECO "A03"]
[WhiteElo "1689"]
[BlackElo "2056"]
[Annotator "NA"]
[PlyCount "82"]
[EventDate "2018.07.25"]
[EventType "team-tourn"]
[EventCountry "TUR"]
[SourceTitle "playchess.com"]
[Source "ChessBase"]
[SourceQuality "1"]
[TimeControl "40/5400+30:1800+30"]

1. f4 {[%emt 0:00:30]} d5 {[%emt 0:06:00]} 2. Nf3 {[%emt 0:00:00]} Nf6 {[%emt 0:00:30]} 3. e3 {[%emt 0:00:00]} c6 {[%emt 0:05:30]} 4. c4 {[%emt 0:00:30]} Bg4 {[%emt 0:00:30]} 5. cxd5 {[%emt 0:00:30]} cxd5 {[%emt 0:00:30]} 6. Bb5+ {[%emt 0:00:30]} Nc6 {[%emt 0:00:00]} 7. O-O {[%emt 0:00:30]} Qb6 {[%emt 0:01:00]} 8. Qa4 {[%emt 0:00:30]} a6 {[%emt 0:08:30]} 9. Bxc6+ {[%emt 0:01:30]} bxc6 {[%emt 0:00:30]} 10. Ne5 {[%emt 0:00:30]} Be2 {[%emt 0:10:30]} 11. Rf2 {[%emt 0:09:30]} Bb5 {[%emt 0:03:30]} 12. Qc2 {[%emt 0:00:00]} Ne4 {[%emt 0:09:30]} 13. a4 {[%emt 0:06:00]} f6 {[%emt 0:05:30]} 14. axb5 {[%emt 0:01:30]} fxe5 {[%emt 0:01:30]} 15. Rf3 {[%emt 0:01:30]} exf4 {[%emt 0:02:30]} 16. Rxa6 {[%emt 0:01:30]} Rxa6 {[%emt 0:00:30]} 17. bxa6 {[%emt 0:00:30]} fxe3 {[%emt 0:00:30]} 18. Rxe3 {[%emt 0:00:30]} e6 {[%emt 0:10:30]} 19. a7 {[%emt 0:03:30]} Qxa7 {[%emt 0:03:30]} 20. Qxc6+ {[%emt 0:00:30]} Kf7 {[%emt 0:01:30]} 21. Kf1 {[%emt 0:00:00]} Bc5 {[%emt 0:07:30]} 22. Rf3+ {[%emt 0:04:00]} Nf6 {[%emt 0:04:10]} 23. Nc3 {[%emt 0:13:30]} Rd8 {[%emt 0:03:55]} 24. Na4 {[%emt 0:02:30]} Be7 {[%emt 0:02:37]} 25. b3 {[%emt 0:06:30]} Qb8 {[%emt 0:02:00]} 26. g3 {[%emt 0:03:30]} Rc8 {[%emt 0:00:21]} 27. Qa6 {[%emt 0:06:30]} Rxc1+ {[%emt 0:00:32]} 28. Kg2 {[%emt 0:00:30]} d4 {[%emt 0:03:14]} 29. Nb6 {[%emt 0:01:30]} Rc6 {[%emt 0:01:29]} 30. Nd7 {[%emt 0:00:30]} Rxa6 {[%emt 0:00:26]} 31. Nxb8 {[%emt 0:00:30]} Rb6 {[%emt 0:02:02]} 32. Nd7 {[%emt 0:00:30]} Rb5 {[%emt 0:00:17]} 33. g4 {[%emt 0:01:30]} Ke8 {[%emt 0:00:11]} 34. Nxf6+ {[%emt 0:00:30]} Bxf6 {[%emt 0:01:01]} 35. Kf2 {[%emt 0:00:30]} e5 {[%emt 0:00:39]} 36. Ke2 {[%emt 0:00:30]} e4 {[%emt 0:00:10]} 37. Rh3 {[%emt 0:00:30]} h6 {[%emt 0:00:17]} 38. Rg3 {[%emt 0:00:30]} Bg5 {[%emt 0:00:14]} 39. Kd1 {[%emt 0:00:30]} d3 {[%emt 0:00:32]} 40. h4 {[%emt 0:00:00]} Rxb3 {[%emt 0:01:23]} 41. Kc1 {[%emt 0:01:00]} Be7 {[%emt 0:00:00]} 0-1

[Event "TUR-chT Superleague 2018"]
[Site "Ankara"]
[Date "2018.07.29"]
[Round "5"]
[White "Ozcan, Kaan"]
[Black "Eren, Ataberk"]
[Result "0-1"]
[ECO "A39"]
[WhiteElo "1523"]
[BlackElo "2195"]
[Annotator "NA"]
[PlyCount "68"]
[EventDate "2018.07.25"]
[EventType "team-tourn"]
[EventCountry "TUR"]
[SourceTitle "playchess.com"]
[Source "ChessBase"]
[SourceQuality "1"]
[TimeControl "40/5400+30:1800+30"]

1. c4 {[%emt 0:00:30]} Nf6 {[%emt 0:01:00]} 2. d4 {[%emt 0:00:30]} c5 {[%emt 0:00:00]} 3. Nf3 {[%emt 0:00:30]} g6 {[%emt 0:01:00]} 4. g3 {[%emt 0:01:30]} Bg7 {[%emt 0:00:30]} 5. Bg2 {[%emt 0:00:30]} O-O {[%emt 0:00:30]} 6. O-O {[%emt 0:00:30]} cxd4 {[%emt 0:00:30]} 7. Nxd4 {[%emt 0:00:30]} Nc6 {[%emt 0:00:00]} 8. Nc3 {[%emt 0:02:30]} Ng4 {[%emt 0:02:00]} 9. e3 {[%emt 0:08:30]} Nge5 {[%emt 0:00:30]} 10. b3 {[%emt 0:03:30]} d6 {[%emt 0:02:30]} 11. Bb2 {[%emt 0:07:30]} Bg4 {[%emt 0:12:30]} 12. f3 {[%emt 0:13:30]} Bd7 {[%emt 0:01:30]} 13. Qd2 {[%emt 0:06:30]} a5 {[%emt 0:06:30]} 14. h3 {[%emt 0:09:30]} a4 {[%emt 0:17:30]} 15. Nxc6 {[%emt 0:11:30]} Bxc6 {[%emt 0:03:30]} 16. Rae1 {[%emt 0:08:30]} axb3 {[%emt 0:02:30]} 17. axb3 {[%emt 0:00:30]} Qb6 {[%emt 0:04:30]} 18. f4 {[%emt 0:04:21]} Nd7 {[%emt 0:00:30]} 19. Nd5 {[%emt 0:03:58]} Bxd5 {[%emt 0:00:30]} 20. Bxd5 {[%emt 0:00:01]} Ra2 {[%emt 0:02:30]} 21. Rb1 {[%emt 0:03:28]} e6 {[%emt 0:04:30]} 22. Bf3 {[%emt 0:03:50]} Nc5 {[%emt 0:02:30]} 23. Rf2 {[%emt 0:02:11]} Rxb2 {[%emt 0:13:30]} 24. Rxb2 {[%emt 0:00:30]} Bxb2 {[%emt 0:00:30]} 25. b4 {[%emt 0:04:28]} Na4 {[%emt 0:00:30]} 26. Qc2 {[%emt 0:02:56]} Ra8 {[%emt 0:00:30]} 27. Bd1 {[%emt 0:00:41]} Qxe3 {[%emt 0:00:30]} 28. Kg2 {[%emt 0:00:28]} Bd4 {[%emt 0:00:00]} 29. Rd2 {[%emt 0:00:31]} Qg1+ {[%emt 0:02:00]} 30. Kf3 {[%emt 0:00:04]} Nb2 {[%emt 0:00:00]} 31. Be2 {[%emt 0:00:52]} Qf2+ {[%emt 0:01:00]} 32. Kg4 {[%emt 0:00:30]} h5+ {[%emt 0:00:00]} 33. Kg5 {[%emt 0:00:11]} Qxg3+ {[%emt 0:00:00]} 34. Kh6 {[%emt 0:00:30]} Bg7# {[%emt 0:00:00]} 0-1

[Event "TUR-chT Superleague 2018"]
[Site "Ankara"]
[Date "2018.07.29"]
[Round "6"]
[White "Yurtseven, Melih"]
[Black "Keler, Faruk"]
[Result "1-0"]
[ECO "E04"]
[WhiteElo "2404"]
[BlackElo "2286"]
[Annotator "ChessBase"]
[PlyCount "89"]
[EventDate "2018.07.25"]
[EventType "team-tourn"]
[EventCountry "TUR"]
[SourceTitle "playchess.com"]
[Source "ChessBase"]
[SourceQuality "1"]
[TimeControl "40/5400+30:1800+30"]

1. d4 d5 2. c4 e6 3. Nc3 Nf6 4. Nf3 c6 5. g3 dxc4 6. Bg2 b5 7. Ne5 Qb6 8. O-O Bb7 9. e4 c5 10. d5 exd5 11. Nxd5 Nxd5 12. exd5 Bd6 13. Nxf7 O-O 14. Nxd6 Qxd6 15. Bf4 Qd7 16. Qh5 Na6 17. a3 Rf5 18. Qg4 Bxd5 19. Rad1 Qf7 20. Rxd5 Rxd5 21. Rd1 h5 22. Bxd5 Qxd5 23. Qxg7+ Kxg7 24. Rxd5 Rc8 25. Rd7+ Kg8 26. Rxa7 Rc6 27. Rb7 b4 28. Kf1 Re6 29. h3 Re4 30. axb4 Nxb4 31. Bd2 Nd3 32. h4 Re5 33. Bc3 Rf5 34. f4 Rd5 35. Rg7+ Kf8 36. Rh7 Ke8 37. Ke2 {[%emt 1:21:30]} Nc1+ {[%emt 1:19:00]} 38. Kf3 {[%emt 0:00:30]} Rd3+ {[%emt 0:00:30]} 39. Kf2 {[%emt 0:00:30]} Rd5 {[%emt 0:00:30]} 40. Rg7 {[%emt 0:00:30]} Na2 {[%emt 0:30:30]} 41. Bf6 {[%emt 0:30:30]} Rd6 {[%emt 0:05:30]} 42. Be5 {[%emt 0:02:30]} Rd3 {[%emt 0:14:23]} 43. Rh7 {[%emt 0:05:51]} Rd2+ {[%emt 0:01:46]} 44. Kf3 {[%emt 0:00:10]} Rd3+ {[%emt 0:00:50]} 45. Ke4 {[%emt 0:00:30]} 1-0

[Event "TUR-chT Superleague 2018"]
[Site "Ankara"]
[Date "2018.07.29"]
[Round "6"]
[White "Can, Isik"]
[Black "Kilic, Gokturk Kagan"]
[Result "1-0"]
[ECO "B77"]
[WhiteElo "2385"]
[BlackElo "1931"]
[Annotator "NA"]
[PlyCount "67"]
[EventDate "2018.07.25"]
[EventType "team-tourn"]
[EventCountry "TUR"]
[SourceTitle "playchess.com"]
[Source "ChessBase"]
[SourceQuality "1"]
[TimeControl "40/5400+30:1800+30"]

1. e4 c5 2. Nf3 d6 {[%emt 0:16:30]} 3. d4 {[%emt 0:00:00]} cxd4 {[%emt 0:00:30]} 4. Nxd4 {[%emt 0:00:00]} Nf6 {[%emt 0:00:30]} 5. Nc3 {[%emt 0:00:30]} g6 {[%emt 0:00:30]} 6. Be3 {[%emt 0:00:30]} Bg7 {[%emt 0:00:30]} 7. f3 {[%emt 0:00:30]} O-O {[%emt 0:00:30]} 8. Bc4 {[%emt 0:00:30]} Nc6 {[%emt 0:00:30]} 9. Qd2 {[%emt 0:00:30]} Nxd4 {[%emt 0:00:30]} 10. Bxd4 {[%emt 0:00:30]} Be6 {[%emt 0:00:30]} 11. Bxe6 {[%emt 0:00:30]} fxe6 {[%emt 0:00:30]} 12. O-O-O {[%emt 0:00:30]} Qa5 {[%emt 0:00:30]} 13. Kb1 {[%emt 0:01:30]} b5 {[%emt 0:08:30]} 14. h4 {[%emt 0:03:30]} b4 {[%emt 0:25:30]} 15. Ne2 {[%emt 0:01:30]} e5 {[%emt 0:07:30]} 16. Be3 {[%emt 0:03:30]} d5 {[%emt 0:05:30]} 17. exd5 {[%emt 0:16:30]} Rfd8 {[%emt 0:17:29]} 18. c4 {[%emt 0:02:30]} Rd6 {[%emt 0:06:20]} 19. Qc2 {[%emt 0:07:30]} e6 {[%emt 0:04:12]} 20. dxe6 {[%emt 0:02:30]} Rxe6 {[%emt 0:00:07]} 21. Ng3 {[%emt 0:01:30]} e4 {[%emt 0:03:22]} 22. f4 {[%emt 0:02:30]} Ng4 {[%emt 0:00:49]} 23. Bd4 {[%emt 0:02:30]} Qc7 {[%emt 0:00:32]} 24. Rhe1 {[%emt 0:14:30]} Qxf4 {[%emt 0:00:28]} 25. Ne2 {[%emt 0:03:30]} Qh6 {[%emt 0:00:37]} 26. Qb3 {[%emt 0:03:30]} Rae8 {[%emt 0:00:31]} 27. Qg3 {[%emt 0:03:30]} Ne5 {[%emt 0:00:29]} 28. Be3 {[%emt 0:02:30]} Qh5 {[%emt 0:00:27]} 29. Nf4 {[%emt 0:00:30]} Qf5 {[%emt 0:00:19]} 30. Nxe6 {[%emt 0:00:30]} Qxe6 {[%emt 0:00:27]} 31. Bd4 {[%emt 0:00:30]} Qxc4 {[%emt 0:00:41]} 32. Rxe4 {[%emt 0:02:30]} Rd8 {[%emt 0:00:29]} 33. Rxe5 {[%emt 0:02:30]} Rxd4 {[%emt 0:00:38]} 34. Rxd4 {[%emt 0:00:00]} 1-0

[Event "TUR-chT Superleague 2018"]
[Site "Ankara"]
[Date "2018.07.29"]
[Round "6"]
[White "Mamedjarova, Zeinab"]
[Black "Sahin, Hayrun Nisa"]
[Result "1-0"]
[ECO "B07"]
[WhiteElo "2345"]
[BlackElo "1736"]
[Annotator "NA"]
[PlyCount "63"]
[EventDate "2018.07.25"]
[EventType "team-tourn"]
[EventCountry "TUR"]
[SourceTitle "playchess.com"]
[Source "ChessBase"]
[SourceQuality "1"]
[TimeControl "40/5400+30:1800+30"]

1. d4 Nf6 2. Nf3 g6 {[%emt 0:11:30]} 3. Nbd2 {[%emt 0:06:30]} Bg7 {[%emt 0:00:30]} 4. e4 {[%emt 0:00:30]} d6 {[%emt 0:00:30]} 5. Bc4 {[%emt 0:00:30]} O-O {[%emt 0:00:30]} 6. Bb3 {[%emt 0:00:30]} c5 {[%emt 0:00:30]} 7. dxc5 {[%emt 0:00:30]} dxc5 {[%emt 0:00:30]} 8. O-O {[%emt 0:00:30]} Nc6 {[%emt 0:00:30]} 9. c3 {[%emt 0:00:30]} Qc7 {[%emt 0:03:30]} 10. Re1 {[%emt 0:10:30]} e6 {[%emt 0:07:30]} 11. a4 {[%emt 0:02:30]} b6 {[%emt 0:01:30]} 12. Qe2 {[%emt 0:04:30]} Rd8 {[%emt 0:04:30]} 13. h3 {[%emt 0:03:30]} Bb7 {[%emt 0:01:30]} 14. Bc2 {[%emt 0:16:30]} Rd7 {[%emt 0:08:30]} 15. Nf1 {[%emt 0:04:30]} Rad8 {[%emt 0:09:30]} 16. Bg5 {[%emt 0:02:30]} h6 {[%emt 0:02:30]} 17. Bh4 {[%emt 0:02:30]} g5 {[%emt 0:00:00]} 18. Bg3 {[%emt 0:02:30]} Qc8 {[%emt 0:00:00]} 19. e5 {[%emt 0:03:30]} Ba6 {[%emt 0:01:30]} 20. Qe3 {[%emt 0:02:30]} Nh7 {[%emt 0:03:30]} 21. Bxh7+ {[%emt 0:11:30]} Kxh7 {[%emt 0:00:00]} 22. h4 {[%emt 0:00:30]} gxh4 {[%emt 0:03:00]} 23. Bxh4 {[%emt 0:00:00]} Rg8 {[%emt 0:02:30]} 24. Rad1 {[%emt 0:03:00]} Na5 {[%emt 0:03:30]} 25. Qe4+ {[%emt 0:04:24]} Kh8 {[%emt 0:00:30]} 26. Qf4 {[%emt 0:00:00]} Nc4 {[%emt 0:10:30]} 27. Bf6 {[%emt 0:00:24]} Kh7 {[%emt 0:01:30]} 28. Qe4+ {[%emt 0:00:05]} Kh8 {[%emt 0:00:00]} 29. Qh4 {[%emt 0:00:02]} Kh7 {[%emt 0:02:00]} 30. Ng5+ {[%emt 0:00:30]} Kg6 {[%emt 0:00:30]} 31. Qe4+ {[%emt 0:00:05]} Kh5 {[%emt 0:00:30]} 32. Ng3# {[%emt 0:00:30]} 1-0

[Event "TUR-chT Superleague 2018"]
[Site "Ankara"]
[Date "2018.07.29"]
[Round "6"]
[White "Buksa, Nataliya"]
[Black "Badelka, Olga"]
[Result "1/2-1/2"]
[ECO "B30"]
[WhiteElo "2337"]
[BlackElo "2407"]
[Annotator "NA"]
[PlyCount "83"]
[EventDate "2018.07.25"]
[EventType "team-tourn"]
[EventCountry "TUR"]
[SourceTitle "playchess.com"]
[Source "ChessBase"]
[SourceQuality "1"]
[TimeControl "40/5400+30:1800+30"]

1. e4 c5 2. Nf3 Nc6 3. Bb5 e6 4. O-O Nge7 5. d4 cxd4 6. Nxd4 {[%emt 0:13:00]} Ng6 {[%emt 0:05:30]} 7. Be3 {[%emt 0:00:30]} Be7 {[%emt 0:00:30]} 8. Be2 {[%emt 0:00:30]} O-O {[%emt 0:00:30]} 9. c4 {[%emt 0:00:30]} Nxd4 {[%emt 0:00:30]} 10. Qxd4 {[%emt 0:00:30]} d6 {[%emt 0:00:30]} 11. Nc3 {[%emt 0:00:30]} Bd7 {[%emt 0:00:30]} 12. Rfd1 {[%emt 0:00:30]} Bc6 {[%emt 0:06:30]} 13. Qd2 {[%emt 0:04:30]} Bf6 {[%emt 0:07:30]} 14. Qxd6 {[%emt 0:39:30]} Qxd6 {[%emt 0:00:30]} 15. Rxd6 {[%emt 0:01:30]} Bxc3 {[%emt 0:00:30]} 16. bxc3 {[%emt 0:00:30]} Bxe4 {[%emt 0:00:00]} 17. f3 {[%emt 0:00:00]} Bc6 {[%emt 0:00:00]} 18. a4 {[%emt 0:00:00]} a6 {[%emt 0:02:30]} 19. Bb6 {[%emt 0:01:30]} Rac8 {[%emt 0:08:30]} 20. a5 {[%emt 0:01:30]} Rfe8 {[%emt 0:02:30]} 21. Kf2 {[%emt 0:00:30]} h5 {[%emt 0:05:30]} 22. g3 {[%emt 0:04:30]} e5 {[%emt 0:01:30]} 23. Rad1 {[%emt 0:03:30]} h4 {[%emt 0:01:30]} 24. Bd3 {[%emt 0:03:30]} hxg3+ {[%emt 0:01:30]} 25. hxg3 {[%emt 0:00:30]} e4 {[%emt 0:06:30]} 26. Bxe4 {[%emt 0:00:30]} Bxe4 {[%emt 0:00:30]} 27. fxe4 {[%emt 0:00:00]} Rxc4 {[%emt 0:02:30]} 28. R1d4 {[%emt 0:01:00]} Rxc3 {[%emt 0:06:30]} 29. Rd8 {[%emt 0:00:00]} Rc8 {[%emt 0:06:30]} 30. Rxc8 {[%emt 0:00:00]} Rxc8 {[%emt 0:00:00]} 31. Rd7 {[%emt 0:00:30]} Rc2+ {[%emt 0:09:00]} 32. Kf1 {[%emt 0:00:30]} Ne5 {[%emt 0:01:30]} 33. Rxb7 {[%emt 0:00:00]} Nc6 {[%emt 0:10:14]} 34. Rc7 {[%emt 0:00:00]} f6 {[%emt 0:00:20]} 35. Ke1 {[%emt 0:00:30]} Rc4 {[%emt 0:01:14]} 36. Kd2 {[%emt 0:01:30]} Kh7 {[%emt 0:00:33]} 37. Ke3 {[%emt 0:09:36]} Kg6 {[%emt 0:00:11]} 38. Kf2 {[%emt 0:06:24]} Rc2+ {[%emt 0:01:40]} 39. Ke3 {[%emt 0:00:25]} Rc4 {[%emt 0:00:30]} 40. Kf2 {[%emt 0:00:00]} Rc2+ {[%emt 0:00:18]} 41. Ke3 {[%emt 0:01:05]} Rc4 {[%emt 0:00:30]} 42. Kf2 {[%emt 0:05:30]} 1/2-1/2